Cogmind - Beta 15 *** ADVENTURER MODE // 2025.06.19 @ 22:29:23 Player: sbr Result: Self-destructed Performance ------------- Evolutions (5) 2500 Regions Visited (5) 1000 Robots Destroyed (55) 275 Value Destroyed (2085) 2085 Prototype IDs (2) 40 Alien Tech Used (0) 0 Bonus (800) 800 TOTAL SCORE: 6700 Bonus ------- Registered with UFD 300 Met Optimus in HQ 500 Cogmind --------- Core Integrity 953/1000 Matter 80/550 Energy 0/100 System Corruption 1% Temperature Cool (0) Movement Core (700) Ox13 Location -5/Factory Parts ------- > --- POWER (2) -------- (None) > --- PROPULSION (4) --- Armored Leg Wheel Compact Wheel Compact Wheel > --- UTILITY (8) ------ Scrap Suit Medium Storage Unit Matter Compressor Improved Sensor Array Improved Signal Interpreter Weapon Cycler Focal Shield > --- WEAPON (3) ------- Heavy Flak Cannon Mass Driver Chainsword > --- INVENTORY (10) --- Weapon Cycler Wave Gun KE Penetrator Mass Driver Grenade Launcher Peak State ------------ > --- POWER ------------ Micro Nuclear Core Light Angular Momentum Engine > --- PROPULSION ------- Carbon-fiber Leg Titanium Leg Armored Leg Gravmag System > --- UTILITY ---------- Scrap Suit Medium Storage Unit Matter Compressor Improved Signal Interpreter Target Analyzer Makeshift ECM Suite > --- WEAPON ----------- KE Penetrator Heavy Flak Cannon > --- INVENTORY -------- Scrap Suit Light Armor Plating High-powered Shock Rifle High-powered Shotgun Assault Cannon Gauss Cannon Grenade Launcher Chainsword [Rating: 60] Favorites ----------- Power Light Angular Momentum Engine Engine Light Angular Momentum Engine Power Core Micro Nuclear Core Propulsion Aluminum Leg Leg Aluminum Leg Wheel Compact Wheel Hover Unit Gravmag System Utility Medium Storage Unit Device Scrap Suit Storage Medium Storage Unit Processor Improved Signal Interpreter Protection Light Armor Plating Weapon Grenade Launcher Energy Gun Wave Gun Energy Cannon Beam Cannon Ballistic Gun KE Penetrator Ballistic Cannon Heavy Flak Cannon Launcher Grenade Launcher Slashing Weapon Chainsword Build | -11 -10 -10 -8 -6 -5 ------- Run | Yrd Mat Sub Scr Fac Fac Slots Evolved 10 | . . . . 8 2 Power 1 | . . . . 1 . Propulsion 2 | . . . . 2 . Utility 6 | . . . . 5 1 Weapon 1 | . . . . . 1 Parts Attached 56 | 5 15 2 7 19 8 Power 9 | 1 2 . 2 4 . Engine 6 | 1 2 . 1 2 . Core 3 | . . . 1 2 . Reactor . | . . . . . . Propulsion 12 | 2 3 . 2 2 3 Treads . | . . . . . . Leg 8 | 2 3 . 2 1 . Wheel 3 | . . . . . 3 Hover 1 | . . . . 1 . Flight . | . . . . . . Utility 17 | 1 3 . 1 8 4 Device 7 | . . . . 4 3 Storage 3 | 1 1 . . 1 . Processor 4 | . . . . 3 1 Hackware . | . . . . . . Protection 3 | . 2 . 1 . . Artifact . | . . . . . . Weapon 18 | 1 7 2 2 5 1 Energy Gun 3 | 1 1 . . . 1 Energy Cannon 2 | . 1 1 . . . Ballistic Gun 7 | . 3 1 2 1 . Ballistic Cannon 3 | . . . . 3 . Launcher 2 | . 2 . . . . Special Weapon . | . . . . . . Impact Weapon . | . . . . . . Slashing Weapon 1 | . . . . 1 . Piercing Weapon . | . . . . . . Special Melee Weapon . | . . . . . . Unidentified Prototypes . | . . . . . . Corrupted Parts 1 | . . . . 1 . System Corruption 6 | . . . . 6 . Parts Lost 16 | . 1 . . 14 1 Power 5 | . . . . 5 . Propulsion 2 | . . . . 2 . Utility 4 | . . . . 3 1 Weapon 5 | . 1 . . 4 . Highest Loss Streak 4 | . 1 . . 4 1 To Critical Strikes . | . . . . . . Average Backups 6 | . 5 6 9 7 4 Power . | . 1 . . . . Propulsion . | . . . . . . Utility 1 | . 1 1 3 2 . Weapon 4 | . 1 4 4 5 3 Tool/Special . | . . . . . . Unused Backups 5 | . . . 2 1 2 Power . | . . . . . . Propulsion . | . . . . . . Utility 2 | . . . 1 . 1 Weapon 2 | . . . . 1 1 Tool/Special 1 | . . . 1 . . Average Slot Usage (%) 86 | . 97 100 100 75 71 Engine 8 | . 14 14 11 5 . Core 1 | . . . 2 3 . Leg 19 | . 28 28 28 14 5 Wheel 1 | . . . . . 12 Device 6 | . . . . 12 14 Storage 13 | . 14 14 14 12 11 Processor 5 | . . . . 10 8 Protection 7 | . 13 14 14 . 3 Ballistic Gun 8 | . 10 11 15 5 . Ballistic Cannon 2 | . . . . 4 7 Launcher 5 | . 9 14 12 . . Peak Build Rating 60 | 5 8 8 24 60 54 Average Rating 28 | 3 6 7 13 47 46 On Entrance 11 | . 5 8 8 24 24 Naked Turns . | . . . . . . Heaviest Build 57 | 10 22 27 30 57 45 Greatest Support 48 | 20 20 20 32 48 42 Greatest Overweight (x) 13 | . 1 1 1 3 13 Average Overweight (x) . | . . . . . 1 Largest Inventory Capacity 10 | 8 10 10 10 10 10 Average Capacity 9 | 7 8 10 10 10 10 Most Carried 10 | . 10 9 10 10 6 Average Carried 7 | . 6 6 9 8 4 Final Capacity 10 | 8 10 10 10 10 10 Final Carried 10 | . 10 7 10 6 5 Class Distribution -------------------- 66% | Mutant 30% | Derelict-Mutant Dominant Class ---------------- Mutant | -10/Materials Mutant | -10/Subcaves Mutant | -8/Scraptown Derelict-Mutant | -6/Factory Mutant | -5/Factory Resources | -11 -10 -10 -8 -6 -5 ----------- Run | Yrd Mat Sub Scr Fac Fac Matter Collected 1639 | 247 224 . 184 709 275 Remotely . | . . . . . . Salvage Created 1488 | . 414 68 . 753 253 Parts 92 | . 37 8 . 40 7 Haulers Intercepted . | . . . . . . Recyclers Shooed 1 | . 1 . . . . Parts Field Recycled . | . . . . . . Retrieved Matter . | . . . . . . Parts Self-Destructed 17 | . . 17 . . . Prevented . | . . . . . . Kills | -11 -10 -10 -8 -6 -5 ------- Run | Yrd Mat Sub Scr Fac Fac Combat Hostiles Destroyed 46 | . 16 5 . 21 4 Guns 19 | . 10 1 . 8 . Cannons 13 | . 2 . . 7 4 AOE 13 | . 3 4 . 6 . Classes Destroyed 11 | . 4 1 . 4 2 Worker 3 | . 1 . . 1 1 Builder 1 | . . . . 1 . Recycler 1 | . . . . . 1 Operator 1 | . . . . 1 . Watcher 3 | . 3 . . . . Swarmer 13 | . 9 4 . . . Grunt 17 | . 7 . . 10 . Duelist 1 | . . . . . 1 Sentry 3 | . . 1 . 1 1 Hunter 4 | . . . . 4 . Programmer 8 | . . . . 6 2 Best Kill Streak 7 | . 6 5 . 7 2 Combat Bots Only 6 | . 6 5 . 4 2 Max Kills in Single Turn 3 | . 3 2 . 2 1 Gunslinging . | . . . . . . Exploded 3 | . 3 2 . 1 . Melee . | . . . . . . Uniques/NPCs Destroyed . | . . . . . . Combat | -11 -10 -10 -8 -6 -5 -------- Run | Yrd Mat Sub Scr Fac Fac Hostile Shots Fired 472 | . 99 5 2 324 42 Missed 155 | . 25 2 1 108 19 Hits 317 | . 74 3 1 216 23 Projectile 317 | . 74 3 1 216 23 AOE 1 | . . . . 1 . Critical Strikes 12 | . 1 . . 10 1 Damage Taken 3775 | . 547 33 3 2831 361 Core 648 | . 133 7 . 461 47 Absorbed by Shields . | . . . . . . Ignored by Resistances 1257 | . 176 9 1 956 115 Regen/Repaired (Parts) 85 | . . . . 67 18 Core Remaining (%) 63 | 100 . . 44 45 . Volleys Fired 152 | . 64 8 . 61 19 Largest 3 | . 2 2 . 2 3 Hottest 172 | . 80 55 . 81 172 Shots Fired 244 | . 79 14 . 116 35 Gun 123 | . 62 8 . 46 7 Cannon 95 | . 10 . . 57 28 Launcher 26 | . 7 6 . 13 . Special . | . . . . . . Kinetic 167 | . 28 8 . 103 28 Thermal 51 | . 44 . . . 7 Explosive 26 | . 7 6 . 13 . Electromagnetic . | . . . . . . Robot Hit Streak 13 | . 7 2 . 10 13 Robot Miss Streak 4 | . 3 1 . 4 4 Penetration Max 1 | . . . . 1 . Secondary Targets 1 | . 1 . . . . Max Gunslinging Chain 1 | . 1 . . . . Shots Hit Robots 160 | . 43 2 . 88 27 Core Hits 144 | . 31 6 . 81 26 Critical Kills 2 | . 1 . . 1 . Critical Parts Destroyed 3 | . . . . 3 . Critical Strikes 10 | . 2 . . 6 2 Burn 2 | . 1 . . . 1 Meltdown 1 | . 1 . . . . Destroy 4 | . . . . 4 . Blast 3 | . . . . 2 1 Melee Attacks 6 | . . . . 2 4 Impact . | . . . . . . Slashing 6 | . . . . 2 4 Piercing . | . . . . . . Sneak Attacks . | . . . . . . Combat Hostiles . | . . . . . . Follow-up Attacks . | . . . . . . Damage Inflicted 4909 | . 804 167 . 3056 882 Guns 1332 | . 420 19 . 773 120 Cannons 2013 | . 106 . . 1145 762 Explosions 1486 | . 240 148 . 1098 . Melee 40 | . . . . 40 . Ramming 38 | . 38 . . . . Kinetic 2839 | . 140 19 . 1918 762 Thermal 705 | . 386 . . 199 120 Explosive 1287 | . 240 148 . 899 . Electromagnetic . | . . . . . . Impact . | . . . . . . Slashing 40 | . . . . 40 . Piercing . | . . . . . . Highest Corruption 8 | . . . . 8 1 Average Corruption 2 | . . . . 3 1 Corruption Purged 1 | . . . . 1 . Corruption Blocked . | . . . . . . Effects 10 | . . . . 9 1 Message Errors 4 | . . . . 4 . Matter Fused 2 | . . . . 1 1 Heat Flow Errors 1 | . . . . 1 . Energy Discharges 1 | . . . . 1 . Parts Rejected 1 | . . . . 1 . Data Loss (major) 1 | . . . . 1 . Overload Shots . | . . . . . . Overflow Damage 45 | . 27 . . 10 8 Projectiles 25 | . 17 . . . 8 Explosions 20 | . 10 . . 10 . Melee . | . . . . . . Knockbacks 54 | . . . . 39 15 Impact . | . . . . . . Kinetic 53 | . . . . 38 15 Secondary 1 | . . . . 1 . Self-Inflicted Damage 250 | . 50 12 . 188 . Shots 10 | . 3 1 . 6 . Rammed . | . . . . . . Targets Rammed 11 | . 11 . . . . Kicked 11 | . 11 . . . . Crushed . | . . . . . . Highest Temperature 237 | . 237 . . 173 129 Average Temperature 62 | . 71 . . 55 44 Received Heat Transfer 1104 | . 150 . . 846 108 Effects 2 | . 2 . . . . Energy Bleed 1 | . 1 . . . . Interference 1 | . 1 . . . . Siege Activations . | . . . . . . Martial Activations . | . . . . . . Shielding Activations . | . . . . . . Robots Disrupted . | . . . . . . Combat Hostiles . | . . . . . . Robots Corrupted . | . . . . . . Combat Hostiles . | . . . . . . Parts Fried . | . . . . . . Impact Corruptions . | . . . . . . Robots Melted 1 | . 1 . . . . Combat Hostiles 1 | . 1 . . . . Parts Melted 4 | . 3 . . . 1 Heat Transferred 1446 | . 1087 . . 100 259 Parts Sabotaged . | . . . . . . Parts Stolen . | . . . . . . Parts Stripped . | . . . . . . Power Chain Reactions . | . . . . . . Alert | -11 -10 -10 -8 -6 -5 ------- Run | Yrd Mat Sub Scr Fac Fac Maximum Alert Level . | . . . . . . Low Security (%) 100 | 100 100 . . 100 100 Level 1 . | . . . . . . Level 2 . | . . . . . . Level 3 . | . . . . . . Level 4 . | . . . . . . Level 5 . | . . . . . . High Security . | . . . . . . Max Security . | . . . . . . Peak Influence 170 | . 170 . . 132 48 Initial 8 | . . . . . 8 Average 22 | . 42 . . 18 6 Influence Increases 1498 | . 472 110 . 751 165 Destroy 0b10 Robot/C 920 | . 320 100 . 420 80 Destroy 0b10 Robot/NC 45 | . 20 . . 15 10 Destroy Leader 216 | . 56 10 . 120 30 Successful Hack 21 | . 11 . . 10 . Disable Machine 135 | . 18 . . 90 27 Destroy Structure 161 | . 47 . . 96 18 Influence Decreases 1474 | . 472 110 . 731 161 Entered New Map 12 | . . . . . 12 Time Decay 1345 | . 462 110 . 634 139 Lost Part 115 | . 10 . . 95 10 Purge Threat 2 | . . . . 2 . Squads Dispatched 20 | . 2 . . 17 1 Investigation 6 | . 2 . . 4 . Extermination 8 | . . . . 7 1 Reinforcement 3 | . . . . 3 . Assault . | . . . . . . Garrison 3 | . . . . 3 . Intercept . | . . . . . . Searches Triggered . | . . . . . . Construction Impeded 2 | . . . . 2 . Haulers Reinforced . | . . . . . . Active Scanning Responses . | . . . . . . Cargo Convoy Interrupts . | . . . . . . Stealth | -11 -10 -10 -8 -6 -5 --------- Run | Yrd Mat Sub Scr Fac Fac Distress Signals . | . . . . . . Communications Jammed . | . . . . . . Distress Signals . | . . . . . . Times Spotted 76 | . 22 4 7 36 7 Peak Tracking Total 4 | . 3 3 2 4 3 Tactical Retreats 4 | . . . . 4 . Traps | -11 -10 -10 -8 -6 -5 ------- Run | Yrd Mat Sub Scr Fac Fac Traps Triggered 1 | . 1 . . . . Indirectly . | . . . . . . Trap Hack Attempts . | . . . . . . Triggered . | . . . . . . Disarmed . | . . . . . . Reprogrammed . | . . . . . . Reused . | . . . . . . Traps Extracted . | . . . . . . Installed . | . . . . . . Triggered . | . . . . . . Machines | -11 -10 -10 -8 -6 -5 ---------- Run | Yrd Mat Sub Scr Fac Fac Machines Disabled 15 | . 2 . . 10 3 Max in Single Turn 3 | . 1 . . 3 2 Machines Repaired . | . . . . . . Machines Dismantled . | . . . . . . Machines Sabotaged . | . . . . . . Overloaded Fab Kills . | . . . . . . Hacking | -11 -10 -10 -8 -6 -5 --------- Run | Yrd Mat Sub Scr Fac Fac Machines Accessed 16 | . 6 . 1 8 1 Terminals 9 | . 4 . . 4 1 Fabricators 1 | . . . . 1 . Repair Stations 1 | . 1 . . . . Recycling Units 2 | . 1 . . 1 . Scanalyzers 2 | . . . . 2 . Garrison Access . | . . . . . . Total Hacks 51 | . 16 . 1 32 2 Successful 32 | . 12 . 1 19 . Failed 19 | . 4 . . 13 2 Catastrophic . | . . . . . . Database Lockouts . | . . . . . . Manual 6 | . 2 . . 4 . Terminals 21 | . 12 . . 7 2 Fabricators 3 | . . . . 3 . Repair Stations 1 | . 1 . . . . Recycling Units 6 | . 3 . . 3 . Scanalyzers 19 | . . . . 19 . Garrison Access . | . . . . . . Terminal Hacks 11 | . 8 . 1 2 . Record 4 | . 3 . 1 . . Prototype ID Bank 1 | . 1 . . . . Terminal Index 1 | . 1 . . . . Repair Station Index 1 | . 1 . . . . Alert Level 2 | . 1 . . 1 . Unreport Threat 1 | . . . . 1 . Zone Layout 1 | . 1 . . . . Fabricator Hacks 1 | . . . . 1 . Network Status 1 | . . . . 1 . Repair Station Hacks 1 | . 1 . . . . Refit 1 | . 1 . . . . Recycling Unit Hacks 1 | . 1 . . . . Report Inventory 1 | . 1 . . . . Scanalyzer 15 | . . . . 15 . Insert Component 9 | . . . . 9 . Analyze 6 | . . . . 6 . Garrison Access Hacks . | . . . . . . Unauthorized Hacks 1 | . . . . 1 . Terminals . | . . . . . . Fabricators . | . . . . . . Repair Stations . | . . . . . . Recycling Units 1 | . . . . 1 . Fedlink 1 | . . . . 1 . Scanalyzers . | . . . . . . Garrison Access . | . . . . . . Data Cores Recovered . | . . . . . . Used . | . . . . . . Hacking Detections 10 | . 3 . . 6 1 Full Trace Events 4 | . 1 . . 3 . Feedback Events 1 | . . . . 1 . Corruption 1 | . . . . 1 . Feedback Blocked . | . . . . . . Robot Schematics Acquired . | . . . . . . Robots Built . | . . . . . . Authchips . | . . . . . . Time . | . . . . . . Total Robot Build Rating . | . . . . . . Part Schematics Acquired 6 | . . . . 6 . Parts Built . | . . . . . . Authchips . | . . . . . . Time . | . . . . . . Total Part Build Rating . | . . . . . . Parts Repaired . | . . . . . . Time . | . . . . . . Parts Recycled . | . . . . . . Recycled Matter . | . . . . . . Retrieved Matter . | . . . . . . Retrieved Components . | . . . . . . Parts Scanalyzed 6 | . . . . 6 . Part Schematics Acquired 6 | . . . . 6 . Parts Damaged 1 | . . . . 1 . Bothacking | -11 -10 -10 -8 -6 -5 ------------ Run | Yrd Mat Sub Scr Fac Fac Used RIF Installer . | . . . . . . Robots Hacked . | . . . . . . Non-combat . | . . . . . . Combat . | . . . . . . Robot Hacks Applied . | . . . . . . Relay Couplers Released . | . . . . . . Fabnet Peak Effective % . | . . . . . . Robots Rewired . | . . . . . . Allies Hacked . | . . . . . . Hacks Repelled . | . . . . . . Allies | -11 -10 -10 -8 -6 -5 -------- Run | Yrd Mat Sub Scr Fac Fac Total Allies . | . . . . . . Largest Group . | . . . . . . Highest-Rated Group . | . . . . . . Highest-Rated Ally . | . . . . . . Total Orders . | . . . . . . Ally Attacks . | . . . . . . Total Damage . | . . . . . . Kills . | . . . . . . Allies Corrupted . | . . . . . . Allies Melted 1 | . . . 1 . . Intel | -11 -10 -10 -8 -6 -5 ------- Run | Yrd Mat Sub Scr Fac Fac Active Infowar (turns) 2976 | . . . . 2627 349 Sensors 349 | . . . . . 349 ECM 2627 | . . . . 2627 . Robot Analysis Total . | . . . . . . Derelict Logs Recovered 1 | . . 1 . . . Drone Launches . | . . . . . . Drone Recoveries . | . . . . . . Exploration | -11 -10 -10 -8 -6 -5 ------------- Run | Yrd Mat Sub Scr Fac Fac Turns Passed 6949 | 90 1285 670 1353 2759 792 Spaces Moved 3546 | 77 890 369 750 1058 402 Core 21 | 13 . . . . 8 Treads . | . . . . . . Legs 3216 | 64 890 369 750 1058 85 Wheels 309 | . . . . . 309 Hover . | . . . . . . Flight . | . . . . . . Fastest Speed 50 | 50 120 120 125 120 93 Average Speed 159 | 108 123 174 177 184 133 Slowest Speed 700 | 120 190 190 190 330 700 Overloaded Moves . | . . . . . . Propulsion Burnouts . | . . . . . . Robots Hopped . | . . . . . . Potential Cave-ins . | . . . . . . Cave-ins Triggered . | . . . . . . Exploration Rate (%) 29 | 4 81 22 59 8 4 Regions Visited 5 Branch Regions 2 Pre-discovered Areas 1 | . . 1 . . . Known Exits Taken 1 | . . . . 1 . Unknown Exits Taken 4 | 1 1 1 1 . . Scrap Searched 4 | . . . 4 . . Spaces Dug 3 | . . . . . 3 Terrain Destroyed 189 | . 46 44 . 91 8 Melee 3 | . . . . . 3 Projectile 6 | . . . . 1 5 AOE 180 | . 46 44 . 90 . Terrain Rammed . | . . . . . . Walls Destroyed . | . . . . . . Machines Disabled . | . . . . . . Actions | -11 -10 -10 -8 -6 -5 --------- Run | Yrd Mat Sub Scr Fac Fac Total 4585 | 81 986 385 777 1736 620 Wait 748 | . . . . 573 175 Move 3541 | 76 889 368 749 1057 402 Hop . | . . . . . . Pick Up 30 | . 5 2 8 9 6 Fast Attach 18 | 5 1 . . 7 5 Attach 14 | . 1 . . 9 4 Detach 1 | . . . . 1 . Swap 39 | . 14 2 8 14 1 Drop 25 | . 1 5 12 3 4 Fire 152 | . 64 8 . 61 19 Melee 6 | . . . . 2 4 Ram . | . . . . . . Kick 11 | . 11 . . . . Crush . | . . . . . . Escape Stasis . | . . . . . . Rewire . | . . . . . . Trap . | . . . . . . Miscellaneous . | . . . . . . Route ------- -11/Scrapyard -10/Materials (discovered 4 exits: [*Mat x3] / [*Sub]) -10/Subcaves -8/Scraptown (discovered 2 exits: *Fac x2) -6/Factory -5/Factory History --------- Turn | Location | Event 7 | -11/Scrapyard | Discovered new exit (range 15) 91 | -11/Scrapyard | Entered Materials 335 | -10/Materials | Build established: Mutant 339 | -10/Materials | Discovered new exit (range 15) 854 | -10/Materials | Discovered new exit (range 9) 1023 | -10/Materials | Core integrity fell below 50% 1069 | -10/Materials | Discovered new exit (range 11) 1100 | -10/Materials | Discovered new exit (range 16) 1376 | -10/Materials | Entered Subcaves 1377 | -10/Subcaves | Approached by a straggling Scientist 1489 | -10/Subcaves | Learned location of Zion (-7) 1781 | -10/Subcaves | A swath of the cavern ceiling suddenly collapsed 2005 | -10/Subcaves | Scientist uncovered a shortcut to Scraptown 2046 | -10/Subcaves | Entered Scraptown 2250 | -8/Scraptown | Heard Great Nut preacher, LISTEN AND RECITE! 2552 | -8/Scraptown | Discovered new exit (range 11) 2870 | -8/Scraptown | Visited UFD Registry 2870 | -8/Scraptown | Registered with UFD as "Hammereater" 3067 | -8/Scraptown | Met Optimus 3067 | -8/Scraptown | Accepted into 0bPrime 3158 | -8/Scraptown | Visited DA-N13 Charitable Foundation 3193 | -8/Scraptown | Found DCF Scrap (30 items) 3205 | -8/Scraptown | Civil war broke out across Scraptown 3222 | -8/Scraptown | Found Scrap Suit 3267 | -8/Scraptown | Lost 4 allies 3269 | -8/Scraptown | Visited Modified Component R&D 3334 | -8/Scraptown | Discovered new exit (range 5) 3349 | -8/Scraptown | Lost 3 allies 3362 | -8/Scraptown | Found Scrap Suit 3365 | -8/Scraptown | Found Scrap Suit 3399 | -8/Scraptown | Entered Factory 3399 | -6/Factory | Evolved 8 slots: Power x1, Propulsion x2, Utility x5 3488 | -6/Factory | Discovered new exit (range 8) 3595 | -6/Factory | Identified exit to Factory 3687 | -6/Factory | Build established: Derelict-Mutant 3799 | -6/Factory | Loaded intel: 8 recycling unit locations 5512 | -6/Factory | Garrison activated, responded to threat 5786 | -6/Factory | Build established: Mutant 6080 | -6/Factory | Lost 4 parts (2p1u1w) 6144 | -6/Factory | Core integrity fell below 50% 6158 | -6/Factory | Entered another Factory area 6158 | -5/Factory | Evolved 2 slots: Utility x1, Weapon x1 6179 | -5/Factory | Lost 4 parts (1u3w) 6950 | -5/Factory | Self-destructed Last Messages --------------- 06708_ Destroyed Hpw. Shock Rifle. 06708_ P-70 Sage destroyed. 06726_ ALERT: Cargo convoy en route, clear transfer corridor. 06732_ Acquired 44 matter. 06735_ U-05 Engineer builds a Door. 06746_ Acquired 7 matter. 06753_ Acquired 4 matter. 06763_ U-05 Engineer builds a Wall. 06772_ System corrupted: Matter fused (-7). 06930_ L-41 Fighter knocked back. 06933_ L-41 Fighter Carbon-fiber Leg blasted off. 06933_ L-41 Fighter knocked back. 06935_ L-41 Fighter destroyed. 06940_ Scrap Suit cannibalized Carbon-fiber Leg to repair Arm. Leg. 06940_ Acquired 5 matter. 06942_ Acquired 15 matter. 06943_ G-50 Soldier knocked back. 06945_ Acquired 3 matter. Map ----- +----------------------------------------------------+ | ???????????????????????????????????????????????# # | | ???????????????????????????????????????????????# # | | ???????????????????????????????????????????????# # | | ???????????????????????????????????????????????# # | | ???????????????????????????????????????????????# # | | ???????????????????????????????????????????????# # | | ?????????????????????????????????????????????###+# | | ?????????????????????????????################# | | ?????????????????????????????# # # "" | | ?????????????????????????????# # # "" | | ?????????????????????????????# """ # # "" | | ??????##############?????????# """"" + + "" | | ??????# #?????????# """"" # # | | ??????# #?????????# # # | | ??????# !!! #?????????# # # | | ??????# ! #?????????# # # | | ??????# ! #??????############## ##### | | ??????# !#??????# # # | | ??????# """"" ! ######## + + "" | | ??????# """"" # # # # "" | | ??????# """ # # # # "T | | ??????# # # # # "" | | ?????## | + """ ;############# # "" | | ?????## ! [ # """ ##????######## # | | ?????########+###### """ #?????# # | | ?????????# #?#####;@##????# ##### | | ?????????# ##### g #????# #???? | | ?????????# g###### #???? | | ?????????# ! #???? | | ?????????# g ########+##########???? | | ?????????# ##### % #" """" """" #?????? | | ?????????# #???######## """" """" #?????? | | ?????????#########???###????# """" """" #?????? | | ????????????????????????????# """ " #?????? | | ????????????????????????????# ! #?????? | | ????????????????????????????# #?????? | | ????????????????????????????################?????? | | | | | | | | | | | | | | | | | | | | | | | | | | | +----------------------------------------------------+ Best States ------------- Heat Dissipation 40 Energy Generation 31 Energy Capacity 210 Matter Stores 317 Matter Capacity 550 Sight Range 16 Robot Scan Range 15 Terrain Scan Density 10 ECM Strength 2 Armor Coverage 150 Resistance: KI 40 Resistance: TH 20 Resistance: EX 20 Resistance: EM 20 Resistance: I 20 Resistance: S 20 Resistance: P 20 Power Shielding 33 Weapon Cycling 15 Evasion (%) 55 Targeting Accuracy 8 Target Analysis 5 Offensive Hacking 10 Item Schematics ----------------- Gauss Cannon | -6/Factory | Scanalyzed Assault Cannon | -6/Factory | Scanalyzed Hpw. Shock Rifle | -6/Factory | Scanalyzed Chainsword | -6/Factory | Scanalyzed Grenade Launcher | -6/Factory | Scanalyzed KE Penetrator | -6/Factory | Scanalyzed Robot Schematics ------------------ None Fabricated ------------ Nothing Repaired ---------- Nothing Alien Tech Used ----------------- None Achievements -------------- Brute Force Challenges ------------ None Game ------ Seed ArcForceTerrabomb Manual? 0 Play Time 00:52:40 Cumulative 18.0 hours Start 2025.06.19 @ 15:37:09 End 2025.06.19 @ 22:29:23 Sessions 5 Manual Loads 0 Difficulty Adventurer Special Mode None Game No. 16 Rogue 0 Adventurer 12 Explorer 4 Win Type - Total 0 Types 0/0/0/0/0/0/0/0/0/0 Lore% 18 Gallery% 18 Achievement% 18 Wizard Run 0 Options --------- Layout 1 ASCII 0 Keyboard 0 Movement Arrows Keybinds 0 Fullscreen 1 Font 18/SmallcapsGlow Map View 54x44 Zoom Use 0% Tactical HUD 1 Map Filters NONE Filters NONE Steam 1 RUN: 811a3dd5-a095-4c32-b694-b78264c48d41